[Event "DVM U20w 2021"]
[Site "Kiel"]
[Date "2022.07.24"]
[Round "3"]
[White "Peglau, Charis"]
[Black "Albayrak, Berrak"]
[Result "1-0"]
[ECO "E80"]
[WhiteElo "1870"]
[BlackElo "1592"]
[Annotator "NA RC COMBH"]
[PlyCount "63"]
[EventDate "2022.07.23"]
[EventType "team-tourn"]
[EventRounds "7"]
[EventCountry "GER"]
[SourceTitle "playchess.com"]
[Source "ChessBase"]
[SourceQuality "1"]
[TimeControl "40/5400+30:1800+30"]

1. d4 {[%emt 0:00:03]} d6 {[%emt 0:00:06]} 2. c4 {[%emt 0:00:06]} Nf6 {[%emt 0:00:04]} 3. Nc3 {[%emt 0:00:11]} g6 {[%emt 0:00:31]} 4. e4 {[%emt 0:00:12]} Bg7 {[%emt 0:00:09]} 5. f3 {[%emt 0:00:18]} c6 {[%emt 0:14:20]} 6. Be3 {[%emt 0:01:22]} Qc7 {[%emt 0:07:06]} 7. Qd2 {[%emt 0:02:27]} h5 {[%emt 0:08:24]} 8. Bd3 {[%emt 0:04:22]} Nbd7 {[%emt 0:04:49]} 9. Nge2 {[%emt 0:00:33]} e5 {[%emt 0:08:42]} 10. d5 {[%emt 0:03:46]} Nc5 {[%emt 0:06:09]} 11. Bc2 {[%emt 0:02:51]} a5 {[%emt 0:07:39]} 12. O-O {[%emt 0:18:11]} O-O {[%emt 0:01:35]} 13. b3 {[%emt 0:06:33]} Kh7 {[%emt 0:03:36]} 14. Rfd1 {[%emt 0:03:20]} Ne8 {[%emt 0:04:40]} 15. Bxc5 $18 {[%emt 0:03:34]} dxc5 {[%emt 0:00:12]} 16. d6 {[%emt 0:00:04]} Qd7 {[%emt 0:05:36]} 17. Na4 {[%emt 0:00:19]} Bh6 {[%emt 0:01:34]} 18. Qd3 {[%emt 0:02:03]} Nf6 {[%emt 0:05:35]} 19. Nb6 {[%emt 0:01:31]} Qd8 {[%emt 0:01:16]} 20. Nxa8 {[%emt 0:00:15]} Bd7 {[%emt 0:01:49]} 21. Nc7 {[%emt 0:00:28]} h4 {[%emt 0:02:50]} 22. Qc3 {[%emt 0:05:17]} Nh5 {[%emt 0:01:25]} 23. Qxe5 {[%emt 0:03:08]} Bg7 {[%emt 0:04:31]} 24. Qe7 {[%emt 0:01:21]} Bxa1 {[%emt 0:02:47]} 25. Qxd8 {[%emt 0:02:25]} Rxd8 {[%emt 0:00:14]} 26. Rxa1 {[%emt 0:00:04]} Nf6 {[%emt 0:02:30]} 27. e5 {[%emt 0:01:35]} Ne8 {[%emt 0:00:49]} 28. Nxe8 {[%emt 0:00:06]} Rxe8 {[%emt 0:00:10]} 29. f4 {[%emt 0:00:19]} f6 {[%emt 0:01:27]} 30. Rd1 {[%emt 0:01:07]} fxe5 {[%emt 0:01:37]} 31. fxe5 {[%emt 0:00:24]} Bg4 {[%emt 0:01:48]} 32. Nf4 {[%emt 0:00:55]} 1-0

[Event "DVM U20w 2021"]
[Site "Kiel"]
[Date "2022.07.24"]
[Round "3"]
[White "Grining, Maria"]
[Black "Muedder, Melanie"]
[Result "1/2-1/2"]
[ECO "D95"]
[WhiteElo "1750"]
[BlackElo "1865"]
[Annotator "NA RC COMBH"]
[PlyCount "57"]
[EventDate "2022.07.23"]
[EventType "team-tourn"]
[EventRounds "7"]
[EventCountry "GER"]
[SourceTitle "playchess.com"]
[Source "ChessBase"]
[SourceQuality "1"]
[TimeControl "40/5400+30:1800+30"]

1. d4 {[%emt 0:00:02]} Nf6 {[%emt 0:00:05]} 2. Nf3 {[%emt 0:00:05]} g6 {[%emt 0:00:10]} 3. c4 {[%emt 0:00:06]} Bg7 {[%emt 0:00:10]} 4. Nc3 {[%emt 0:00:06]} d5 {[%emt 0:00:06]} 5. e3 {[%emt 0:00:13]} O-O {[%emt 0:07:47]} 6. Qb3 {[%emt 0:00:08]} c6 {[%emt 0:04:34]} 7. Bd2 {[%emt 0:00:36]} Na6 {[%emt 0:05:27]} 8. Be2 {[%emt 0:05:12]} Qd6 {[%emt 0:11:24]} 9. c5 {[%emt 0:14:45]} Qc7 {[%emt 0:13:40]} 10. Qa3 {[%emt 0:11:50]} Nb8 {[%emt 0:08:10]} 11. b4 {[%emt 0:01:31]} Bf5 $11 {[%emt 0:01:42]} 12. b5 {[%emt 0:07:51]} Nbd7 {[%emt 0:04:07]} 13. Nh4 {[%emt 0:08:56]} Bg4 {[%emt 0:09:23]} 14. f3 {[%emt 0:04:13]} Be6 {[%emt 0:01:01]} 15. f4 {[%emt 0:03:20]} Ne4 {[%emt 0:04:21]} 16. Qb2 {[%emt 0:08:25]} Ndf6 {[%emt 0:07:16]} 17. O-O {[%emt 0:04:51]} Nxd2 {[%emt 0:04:34]} 18. Qxd2 {[%emt 0:00:08]} Ne4 {[%emt 0:00:04]} 19. Qc2 {[%emt 0:04:23]} Nxc3 {[%emt 0:02:24]} 20. Qxc3 {[%emt 0:00:06]} Bd7 {[%emt 0:01:49]} 21. a4 {[%emt 0:03:34]} Rac8 {[%emt 0:01:43]} 22. Rac1 {[%emt 0:01:57]} Qd8 {[%emt 0:01:06]} 23. Nf3 {[%emt 0:01:32]} b6 {[%emt 0:00:54]} 24. Ne5 {[%emt 0:01:21]} bxc5 {[%emt 0:03:30]} 25. dxc5 {[%emt 0:03:57]} Be8 {[%emt 0:03:13]} 26. Rfd1 {[%emt 0:02:44]} f6 {[%emt 0:02:05]} 27. Nxc6 {[%emt 0:02:50]} Bxc6 {[%emt 0:00:06]} 28. bxc6 {[%emt 0:00:07]} Rxc6 {[%emt 0:00:13]} 29. Rxd5 {[%emt 0:00:14]} 1/2-1/2

[Event "DVM U20w 2021"]
[Site "Kiel"]
[Date "2022.07.24"]
[Round "3"]
[White "Albayrak, Nese Pinar"]
[Black "Peglau, Sarah"]
[Result "1-0"]
[ECO "B12"]
[WhiteElo "1651"]
[BlackElo "1782"]
[Annotator "NA RC COMBH"]
[PlyCount "105"]
[EventDate "2022.07.23"]
[EventType "team-tourn"]
[EventRounds "7"]
[EventCountry "GER"]
[SourceTitle "playchess.com"]
[Source "ChessBase"]
[SourceQuality "1"]
[TimeControl "40/5400+30:1800+30"]

1. e4 {[%emt 0:00:01]} c6 {[%emt 0:00:04]} 2. d4 {[%emt 0:00:04]} d5 {[%emt 0:00:04]} 3. e5 {[%emt 0:00:05]} Bf5 {[%emt 0:00:09]} 4. h4 {[%emt 0:00:06]} Qc7 {[%emt 0:00:29]} 5. Bd3 {[%emt 0:04:02]} Bg6 {[%emt 0:02:37]} 6. Bxg6 {[%emt 0:09:25]} hxg6 {[%emt 0:00:08]} 7. e6 {[%emt 0:03:38]} Nf6 {[%emt 0:16:01]} 8. exf7+ {[%emt 0:04:15]} Kxf7 {[%emt 0:00:33]} 9. Nf3 {[%emt 0:03:31]} Nbd7 {[%emt 0:00:14]} 10. Ng5+ {[%emt 0:03:11]} Kg8 {[%emt 0:01:52]} 11. Qd3 {[%emt 0:07:10]} e5 {[%emt 0:02:17]} 12. Qxg6 {[%emt 0:02:40]} Nb6 {[%emt 0:01:46]} 13. h5 {[%emt 0:30:49]} Rh6 {[%emt 0:01:57]} 14. Qf5 {[%emt 0:00:16]} Re8 {[%emt 0:02:15]} 15. Ne6 {[%emt 0:03:33]} Qe7 {[%emt 0:01:47]} 16. Bxh6 {[%emt 0:00:40]} gxh6 {[%emt 0:01:01]} 17. Nxf8 {[%emt 0:03:14]} exd4+ {[%emt 0:04:05]} 18. Ne6 {[%emt 0:08:51]} Qxe6+ {[%emt 0:02:16]} 19. Qxe6+ {[%emt 0:00:04]} Rxe6+ {[%emt 0:00:02]} 20. Kd1 {[%emt 0:00:24]} Ng4 {[%emt 0:03:07]} 21. Rf1 {[%emt 0:02:58]} Nc4 {[%emt 0:05:57]} 22. Kc1 {[%emt 0:04:14]} Nxf2 {[%emt 0:00:43]} 23. b3 {[%emt 0:00:44]} Re2 {[%emt 0:02:32]} 24. bxc4 {[%emt 0:01:19]} dxc4 {[%emt 0:00:02]} 25. c3 {[%emt 0:04:37]} c5 {[%emt 0:02:27]} 26. a4 {[%emt 0:01:21]} b6 {[%emt 0:02:37]} 27. Ra3 {[%emt 0:01:20]} a6 {[%emt 0:03:01]} 28. Nd2 {[%emt 0:00:58]} b5 {[%emt 0:00:32]} 29. axb5 {[%emt 0:00:02]} axb5 {[%emt 0:00:01]} 30. cxd4 {[%emt 0:01:18]} cxd4 {[%emt 0:00:12]} 31. Ra8+ {[%emt 0:00:10]} Kg7 {[%emt 0:00:34]} 32. Ra7+ {[%emt 0:00:05]} Kg8 {[%emt 0:08:10]} 33. Ra8+ {[%emt 0:00:08]} Kg7 {[%emt 0:00:03]} 34. Ra7+ {[%emt 0:00:08]} Kg8 {[%emt 0:05:12]} 35. Rd7 {[%emt 0:01:16]} c3 {[%emt 0:09:12]} 36. Rxd4 {[%emt 0:00:57]} cxd2+ {[%emt 0:00:19]} 37. Rxd2 {[%emt 0:00:02]} Rxd2 {[%emt 0:00:23]} 38. Kxd2 {[%emt 0:00:03]} Ne4+ {[%emt 0:00:18]} 39. Ke3 {[%emt 0:01:18]} Ng3 {[%emt 0:00:29]} 40. Rb1 {[%emt 0:00:15]} Nxh5 {[%emt 0:00:12]} 41. Rxb5 {[%emt 0:31:00]} Ng7 {[%emt 0:30:35]} 42. Kf4 {[%emt 0:00:00]} Kh7 {[%emt 0:00:00]} 43. Rb6 {[%emt 0:00:00]} Ne8 {[%emt 0:00:00]} 44. Rc6 {[%emt 0:00:00]} Ng7 {[%emt 0:00:00]} 45. g4 {[%emt 0:00:00]} Ne8 {[%emt 0:00:00]} 46. Kf5 {[%emt 0:00:00]} Kg7 {[%emt 0:00:00]} 47. Ke5 {[%emt 0:00:00]} Kh7 {[%emt 0:00:00]} 48. Ke6 {[%emt 0:00:00]} Ng7+ {[%emt 0:00:00]} 49. Kf7 {[%emt 0:00:00]} h5 {[%emt 0:00:00]} 50. g5 {[%emt 0:00:00]} Nf5 {[%emt 0:00:00]} 51. g6+ {[%emt 0:00:00]} Kh6 {[%emt 0:00:00]} 52. g7+ {[%emt 0:00:00]} Kg5 {[%emt 0:00:00]} 53. g8=Q+ {[%emt 0:00:24]} 1-0

[Event "DVM U20w 2021"]
[Site "Kiel"]
[Date "2022.07.24"]
[Round "3"]
[White "Rempe, Mieke"]
[Black "Fock, Sana"]
[Result "1/2-1/2"]
[ECO "B92"]
[WhiteElo "1646"]
[BlackElo "1807"]
[Annotator "NA RC COMBH"]
[PlyCount "61"]
[EventDate "2022.07.23"]
[EventType "team-tourn"]
[EventRounds "7"]
[EventCountry "GER"]
[SourceTitle "playchess.com"]
[Source "ChessBase"]
[SourceQuality "1"]
[TimeControl "40/5400+30:1800+30"]

1. e4 {[%emt 0:00:02]} c5 {[%emt 0:00:04]} 2. Nf3 {[%emt 0:00:09]} d6 {[%emt 0:00:07]} 3. d4 {[%emt 0:00:10]} cxd4 {[%emt 0:00:07]} 4. Nxd4 {[%emt 0:00:07]} Nf6 {[%emt 0:00:12]} 5. Nc3 {[%emt 0:00:08]} a6 {[%emt 0:00:04]} 6. Be2 {[%emt 0:02:16]} e5 {[%emt 0:00:23]} 7. Nf3 {[%emt 0:01:48]} Be7 {[%emt 0:00:51]} 8. O-O {[%emt 0:01:34]} O-O {[%emt 0:00:47]} 9. Qd3 {[%emt 0:03:26]} Nbd7 {[%emt 0:06:17]} 10. Nd5 {[%emt 0:13:17]} Nxd5 {[%emt 0:04:43]} 11. Qxd5 {[%emt 0:03:59]} Nc5 {[%emt 0:05:57]} 12. Be3 {[%emt 0:04:37]} Be6 {[%emt 0:05:45]} 13. Qd2 {[%emt 0:02:38]} Qc7 {[%emt 0:09:06]} 14. Bd3 {[%emt 0:06:20]} b5 {[%emt 0:09:27]} 15. Ne1 $17 {[%emt 0:08:42]} Na4 {[%emt 0:05:19]} 16. b3 {[%emt 0:07:35]} Nb6 {[%emt 0:10:14]} 17. f4 {[%emt 0:02:59]} exf4 {[%emt 0:02:38]} 18. Bxf4 {[%emt 0:03:39]} Rac8 {[%emt 0:15:42]} 19. Nf3 {[%emt 0:02:05]} Bf6 {[%emt 0:02:08]} 20. Rad1 {[%emt 0:03:03]} Rfd8 {[%emt 0:02:00]} 21. Bg5 {[%emt 0:04:58]} Bxg5 {[%emt 0:01:12]} 22. Nxg5 {[%emt 0:00:58]} Qc5+ {[%emt 0:02:01]} 23. Kh1 {[%emt 0:00:22]} Qe5 {[%emt 0:02:16]} 24. Nxe6 {[%emt 0:03:42]} fxe6 {[%emt 0:01:08]} 25. Qf2 {[%emt 0:01:45]} Nd7 {[%emt 0:01:36]} 26. a4 {[%emt 0:10:08]} Nf6 {[%emt 0:02:34]} 27. axb5 {[%emt 0:03:13]} axb5 {[%emt 0:00:06]} 28. Qf4 {[%emt 0:00:53]} Qxf4 {[%emt 0:03:08]} 29. Rxf4 {[%emt 0:00:08]} Rc5 {[%emt 0:01:26]} 30. Rdf1 {[%emt 0:03:39]} Rdc8 {[%emt 0:02:41]} 31. Kg1 {[%emt 0:01:21]} 1/2-1/2

[Event "DVM U20w 2021"]
[Site "Kiel"]
[Date "2022.07.24"]
[Round "3"]
[White "Rempe, Janne"]
[Black "Neitzel, Emma"]
[Result "1-0"]
[ECO "D02"]
[WhiteElo "1497"]
[BlackElo "1135"]
[Annotator "NA RC COMBH"]
[PlyCount "75"]
[EventDate "2022.07.23"]
[EventType "team-tourn"]
[EventRounds "7"]
[EventCountry "GER"]
[SourceTitle "playchess.com"]
[Source "ChessBase"]
[SourceQuality "1"]
[TimeControl "40/5400+30:1800+30"]

1. d4 {[%emt 0:00:04]} d5 {[%emt 0:00:05]} 2. Nf3 {[%emt 0:00:19]} Nf6 {[%emt 0:00:09]} 3. Bf4 {[%emt 0:00:36]} g6 {[%emt 0:00:14]} 4. e3 {[%emt 0:01:03]} Bg7 {[%emt 0:00:13]} 5. c3 {[%emt 0:00:15]} O-O {[%emt 0:00:44]} 6. Nbd2 {[%emt 0:01:11]} c5 {[%emt 0:00:31]} 7. Be2 {[%emt 0:01:37]} Nfd7 {[%emt 0:00:19]} 8. h4 {[%emt 0:01:03]} Nc6 {[%emt 0:00:48]} 9. h5 {[%emt 0:03:41]} e5 {[%emt 0:02:28]} 10. dxe5 {[%emt 0:04:43]} Ncxe5 {[%emt 0:00:24]} 11. hxg6 {[%emt 0:09:36]} Nxf3+ {[%emt 0:01:31]} 12. Nxf3 {[%emt 0:00:11]} Nf6 {[%emt 0:29:11]} 13. gxh7+ {[%emt 0:01:19]} Nxh7 {[%emt 0:01:26]} 14. Qc2 {[%emt 0:02:38]} Nf6 {[%emt 0:02:52]} 15. Bg5 {[%emt 0:03:10]} Re8 {[%emt 0:01:40]} 16. O-O-O {[%emt 0:03:07]} Kf8 {[%emt 0:09:24]} 17. Bb5 {[%emt 0:02:43]} Re6 {[%emt 0:02:53]} 18. Bh6 {[%emt 0:04:44]} Ne4 {[%emt 0:05:14]} 19. Bxg7+ {[%emt 0:03:07]} Kxg7 {[%emt 0:00:34]} 20. Rh5 {[%emt 0:01:03]} Qa5 {[%emt 0:01:44]} 21. Qb3 {[%emt 0:08:33]} c4 {[%emt 0:01:44]} 22. Qa4 {[%emt 0:02:01]} Qxa4 {[%emt 0:01:27]} 23. Bxa4 {[%emt 0:00:02]} Ra6 {[%emt 0:01:37]} 24. Bc2 {[%emt 0:02:40]} Be6 {[%emt 0:04:45]} 25. Bxe4 {[%emt 0:09:06]} dxe4 {[%emt 0:00:13]} 26. Nd2 {[%emt 0:01:39]} Rd8 {[%emt 0:03:10]} 27. a3 {[%emt 0:02:47]} f6 {[%emt 0:04:08]} 28. Rdh1 {[%emt 0:01:15]} Bf7 {[%emt 0:11:31]} 29. Rh7+ {[%emt 0:00:37]} Kf8 {[%emt 0:00:52]} 30. Nxe4 {[%emt 0:02:13]} Bg6 {[%emt 0:01:30]} 31. Rh8+ {[%emt 0:00:57]} Ke7 {[%emt 0:00:07]} 32. Rxd8 {[%emt 0:03:19]} Kxd8 {[%emt 0:00:05]} 33. Nc5 {[%emt 0:00:41]} Rb6 {[%emt 0:00:47]} 34. Rh4 {[%emt 0:02:06]} Bf7 {[%emt 0:01:48]} 35. Rd4+ {[%emt 0:00:11]} Kc8 {[%emt 0:03:18]} 36. f4 {[%emt 0:00:55]} Rc6 {[%emt 0:00:42]} 37. Ne4 {[%emt 0:03:10]} b5 {[%emt 0:01:32]} 38. Nd6+ {[%emt 0:00:24]} 1-0

[Event "DVM U20w 2021"]
[Site "Kiel"]
[Date "2022.07.24"]
[Round "3"]
[White "Margaryan, Susanna"]
[Black "Malinowsky, Celina"]
[Result "1-0"]
[ECO "D36"]
[WhiteElo "1436"]
[BlackElo "1519"]
[Annotator "NA RC COMBH"]
[PlyCount "63"]
[EventDate "2022.07.23"]
[EventType "team-tourn"]
[EventRounds "7"]
[EventCountry "GER"]
[SourceTitle "playchess.com"]
[Source "ChessBase"]
[SourceQuality "1"]
[TimeControl "40/5400+30:1800+30"]

1. d4 {[%emt 0:00:03]} d5 {[%emt 0:00:10]} 2. c4 {[%emt 0:00:04]} e6 {[%emt 0:00:08]} 3. cxd5 {[%emt 0:00:04]} exd5 {[%emt 0:00:10]} 4. Nc3 {[%emt 0:00:04]} Nf6 {[%emt 0:01:09]} 5. Bg5 {[%emt 0:00:05]} Be7 {[%emt 0:01:09]} 6. Nf3 {[%emt 0:00:16]} Nbd7 {[%emt 0:03:00]} 7. e3 {[%emt 0:00:12]} c6 {[%emt 0:00:43]} 8. Bd3 {[%emt 0:01:37]} O-O {[%emt 0:00:49]} 9. O-O {[%emt 0:00:15]} Re8 {[%emt 0:01:59]} 10. Qc2 {[%emt 0:02:09]} Nf8 {[%emt 0:03:55]} 11. Rab1 {[%emt 0:01:48]} a5 {[%emt 0:04:30]} 12. a3 {[%emt 0:05:48]} Qd6 {[%emt 0:03:22]} 13. b4 {[%emt 0:02:48]} axb4 {[%emt 0:02:29]} 14. axb4 {[%emt 0:00:07]} Ng4 {[%emt 0:01:53]} 15. Bf4 {[%emt 0:01:17]} Qe6 {[%emt 0:05:17]} 16. b5 {[%emt 0:02:17]} Bd6 {[%emt 0:02:17]} 17. Bxd6 {[%emt 0:03:26]} Qxd6 {[%emt 0:00:15]} 18. bxc6 {[%emt 0:00:13]} bxc6 {[%emt 0:00:59]} 19. Rb6 {[%emt 0:02:30]} Re6 {[%emt 0:04:45]} 20. Rc1 {[%emt 0:04:44]} Bd7 {[%emt 0:04:33]} 21. Bf5 {[%emt 0:04:13]} Rh6 {[%emt 0:04:39]} 22. h3 {[%emt 0:01:32]} Bxf5 {[%emt 0:04:22]} 23. Qxf5 {[%emt 0:00:15]} Qa3 {[%emt 0:03:14]} 24. Qc2 {[%emt 0:06:51]} Qa5 {[%emt 0:03:36]} 25. Rcb1 {[%emt 0:02:19]} Nd7 {[%emt 0:02:43]} 26. Rb7 {[%emt 0:01:28]} Ngf6 {[%emt 0:04:28]} 27. Ne5 {[%emt 0:01:16]} Nxe5 {[%emt 0:03:29]} 28. dxe5 {[%emt 0:00:07]} Ne8 {[%emt 0:01:52]} 29. Qf5 {[%emt 0:00:54]} f6 {[%emt 0:14:50]} 30. Qe6+ {[%emt 0:00:16]} Kh8 {[%emt 0:00:27]} 31. Qf7 {[%emt 0:01:09]} Qa3 {[%emt 0:02:41]} 32. Re7 {[%emt 0:01:43]} 1-0

[Event "DVM U20w 2021"]
[Site "Kiel"]
[Date "2022.07.24"]
[Round "3"]
[White "Bangsa-Giesen, Citra"]
[Black "Tabakh, Tassnim"]
[Result "0-1"]
[ECO "B13"]
[WhiteElo "1420"]
[BlackElo "1241"]
[Annotator "NA RC COMBH"]
[PlyCount "64"]
[EventDate "2022.07.23"]
[EventType "team-tourn"]
[EventRounds "7"]
[EventCountry "GER"]
[SourceTitle "playchess.com"]
[Source "ChessBase"]
[SourceQuality "1"]
[TimeControl "40/5400+30:1800+30"]

1. e4 {[%emt 0:00:02]} c6 {[%emt 0:00:15]} 2. d4 {[%emt 0:00:15]} d5 {[%emt 0:00:11]} 3. exd5 {[%emt 0:04:14]} cxd5 {[%emt 0:00:17]} 4. Nf3 {[%emt 0:00:14]} Bg4 {[%emt 0:02:05]} 5. Nc3 {[%emt 0:02:49]} f6 {[%emt 0:03:15]} 6. h3 {[%emt 0:03:03]} Bxf3 {[%emt 0:02:17]} 7. Qxf3 {[%emt 0:00:19]} e6 {[%emt 0:00:25]} 8. Bb5+ {[%emt 0:05:13]} Nc6 {[%emt 0:05:18]} 9. Qe2 {[%emt 0:02:17]} Qd6 {[%emt 0:10:00]} 10. Be3 {[%emt 0:05:17]} a6 {[%emt 0:04:10]} 11. Bxc6+ {[%emt 0:01:50]} Qxc6 {[%emt 0:01:42]} 12. O-O {[%emt 0:02:16]} Bb4 {[%emt 0:01:49]} 13. Nb1 {[%emt 0:03:32]} Ne7 {[%emt 0:03:45]} 14. Bf4 {[%emt 0:04:36]} O-O {[%emt 0:04:41]} 15. c3 {[%emt 0:01:01]} Ba5 {[%emt 0:00:34]} 16. Nd2 {[%emt 0:03:16]} Rfe8 {[%emt 0:03:46]} 17. Nf3 {[%emt 0:05:18]} Ng6 {[%emt 0:01:40]} 18. Bg3 {[%emt 0:02:29]} Re7 {[%emt 0:05:04]} 19. Rfe1 {[%emt 0:05:48]} Rae8 {[%emt 0:00:59]} 20. Qd2 {[%emt 0:02:45]} Bc7 {[%emt 0:02:19]} 21. Bh2 {[%emt 0:03:33]} Bxh2+ {[%emt 0:01:31]} 22. Kxh2 {[%emt 0:00:19]} e5 {[%emt 0:03:48]} 23. dxe5 {[%emt 0:02:10]} Nxe5 {[%emt 0:00:21]} 24. Nd4 {[%emt 0:03:32]} Qd6 {[%emt 0:01:53]} 25. Kg1 {[%emt 0:03:06]} Nc4 {[%emt 0:03:04]} 26. Rxe7 {[%emt 0:15:05]} Nxd2 {[%emt 0:08:42]} 27. Rxe8+ {[%emt 0:00:07]} Kf7 {[%emt 0:00:11]} 28. Rae1 {[%emt 0:01:06]} Kg6 {[%emt 0:01:27]} 29. f3 {[%emt 0:04:03]} Qb6 {[%emt 0:03:45]} 30. b3 {[%emt 0:02:37]} Qc5 {[%emt 0:02:11]} 31. R8e7 {[%emt 0:02:00]} Qxc3 {[%emt 0:01:21]} 32. Ne6 {[%emt 0:00:21]} Nxf3+ {[%emt 0:00:41]} 0-1

[Event "DVM U20w 2021"]
[Site "Kiel"]
[Date "2022.07.24"]
[Round "3"]
[White "Neumeier, Valentina"]
[Black "Xie, Kelly"]
[Result "1-0"]
[ECO "C54"]
[WhiteElo "1392"]
[BlackElo "917"]
[Annotator "NA RC COMBH"]
[PlyCount "63"]
[EventDate "2022.07.23"]
[EventType "team-tourn"]
[EventRounds "7"]
[EventCountry "GER"]
[SourceTitle "playchess.com"]
[Source "ChessBase"]
[SourceQuality "1"]
[TimeControl "40/5400+30:1800+30"]

1. e4 {[%emt 0:00:01]} e5 {[%emt 0:00:12]} 2. Nf3 {[%emt 0:00:05]} Nc6 {[%emt 0:00:17]} 3. Bc4 {[%emt 0:00:07]} Bc5 {[%emt 0:00:47]} 4. c3 {[%emt 0:00:06]} d6 {[%emt 0:01:37]} 5. d3 {[%emt 0:00:38]} Nf6 {[%emt 0:02:13]} 6. Nbd2 {[%emt 0:00:48]} O-O {[%emt 0:01:28]} 7. O-O {[%emt 0:00:43]} b6 {[%emt 0:03:09]} 8. b4 {[%emt 0:00:18]} Nxb4 {[%emt 0:11:31]} 9. cxb4 {[%emt 0:01:00]} Bxb4 {[%emt 0:00:29]} 10. Qb3 {[%emt 0:01:59]} Bc5 {[%emt 0:05:15]} 11. Ng5 {[%emt 0:05:14]} d5 {[%emt 0:05:59]} 12. exd5 {[%emt 0:02:07]} Bd6 {[%emt 0:07:14]} 13. Nde4 {[%emt 0:05:07]} Nxe4 {[%emt 0:00:00]} 14. dxe4 {[%emt 0:00:46]} Qxg5 {[%emt 0:00:00]} 15. Bxg5 {[%emt 0:00:06]} Bd7 {[%emt 0:00:00]} 16. f4 {[%emt 0:00:24]} exf4 {[%emt 0:02:45]} 17. Bxf4 {[%emt 0:00:06]} Rae8 {[%emt 0:03:02]} 18. Rae1 {[%emt 0:00:55]} h6 {[%emt 0:01:48]} 19. e5 {[%emt 0:00:20]} Bc5+ {[%emt 0:02:14]} 20. Kh1 {[%emt 0:00:12]} Kh8 {[%emt 0:05:42]} 21. d6 {[%emt 0:01:08]} Be6 {[%emt 0:01:57]} 22. Bxe6 {[%emt 0:01:41]} fxe6 {[%emt 0:01:25]} 23. d7 {[%emt 0:01:52]} Re7 {[%emt 0:01:32]} 24. Rd1 {[%emt 0:01:00]} Rd8 {[%emt 0:01:07]} 25. h3 {[%emt 0:01:02]} Rexd7 {[%emt 0:01:09]} 26. Rxd7 {[%emt 0:00:09]} Rxd7 {[%emt 0:00:11]} 27. Qxe6 {[%emt 0:00:06]} Re7 {[%emt 0:00:49]} 28. Qg6 {[%emt 0:00:12]} Kg8 {[%emt 0:01:11]} 29. Bxh6 {[%emt 0:00:11]} a5 {[%emt 0:02:49]} 30. Rd1 {[%emt 0:00:32]} Rf7 {[%emt 0:00:56]} 31. e6 {[%emt 0:00:30]} Rf6 {[%emt 0:01:31]} 32. Qxg7# {[%emt 0:00:07]} 1-0

[Event "DVM U20w 2021"]
[Site "Kiel"]
[Date "2022.07.24"]
[Round "3"]
[White "Albayrak, Melissa"]
[Black "Peglau, Mirjam"]
[Result "0-1"]
[ECO "C14"]
[WhiteElo "1366"]
[BlackElo "1876"]
[Annotator "NA RC COMBH"]
[PlyCount "80"]
[EventDate "2022.07.23"]
[EventType "team-tourn"]
[EventRounds "7"]
[EventCountry "GER"]
[SourceTitle "playchess.com"]
[Source "ChessBase"]
[SourceQuality "1"]
[TimeControl "40/5400+30:1800+30"]

1. e4 {[%emt 0:00:02]} e6 {[%emt 0:00:06]} 2. Nc3 {[%emt 0:00:08]} d5 {[%emt 0:00:06]} 3. d4 {[%emt 0:00:18]} Nf6 {[%emt 0:00:09]} 4. Bg5 {[%emt 0:00:29]} Be7 {[%emt 0:00:17]} 5. Bd3 {[%emt 0:01:02]} dxe4 {[%emt 0:02:10]} 6. Bxe4 {[%emt 0:00:24]} Nxe4 {[%emt 0:00:32]} 7. Bxe7 {[%emt 0:00:10]} Nxc3 {[%emt 0:03:04]} 8. Bxd8 {[%emt 0:01:11]} Nxd1 {[%emt 0:00:02]} 9. Bxc7 {[%emt 0:01:59]} Nxb2 {[%emt 0:00:07]} 10. Nf3 {[%emt 0:04:04]} Na6 {[%emt 0:01:26]} 11. Bf4 {[%emt 0:02:41]} Nc4 {[%emt 0:01:06]} 12. O-O {[%emt 0:03:26]} O-O {[%emt 0:00:27]} 13. Rfe1 {[%emt 0:04:02]} Nb4 {[%emt 0:03:01]} 14. Re2 {[%emt 0:00:17]} Nd5 {[%emt 0:00:35]} 15. Bg3 {[%emt 0:02:42]} Bd7 {[%emt 0:01:59]} 16. Rc1 {[%emt 0:08:37]} Rfc8 {[%emt 0:06:40]} 17. c3 {[%emt 0:09:03]} Rc6 {[%emt 0:01:15]} 18. Ree1 {[%emt 0:06:19]} Rac8 {[%emt 0:01:23]} 19. h3 {[%emt 0:02:20]} f6 {[%emt 0:00:40]} 20. Re2 {[%emt 0:11:34]} Ncb6 {[%emt 0:00:50]} 21. Rb2 {[%emt 0:04:17]} Rxc3 {[%emt 0:00:21]} 22. Rxc3 {[%emt 0:00:48]} Rxc3 {[%emt 0:00:01]} 23. Bb8 {[%emt 0:00:32]} a6 {[%emt 0:01:33]} 24. Ba7 {[%emt 0:00:47]} Rc6 {[%emt 0:00:01]} 25. Nd2 {[%emt 0:05:26]} Bc8 {[%emt 0:00:40]} 26. Nb3 {[%emt 0:08:36]} Na4 {[%emt 0:00:17]} 27. Rb1 {[%emt 0:01:24]} b5 {[%emt 0:00:04]} 28. Bc5 {[%emt 0:01:21]} Nxc5 {[%emt 0:00:27]} 29. Nxc5 {[%emt 0:00:12]} Kf7 {[%emt 0:01:18]} 30. g3 {[%emt 0:02:27]} Nc3 {[%emt 0:00:50]} 31. Rb2 {[%emt 0:00:58]} Na4 {[%emt 0:00:38]} 32. Rc2 {[%emt 0:01:06]} Nxc5 {[%emt 0:00:05]} 33. dxc5 {[%emt 0:00:09]} e5 {[%emt 0:00:02]} 34. f3 {[%emt 0:00:20]} Ke6 {[%emt 0:00:08]} 35. Kf2 {[%emt 0:00:27]} Kd5 {[%emt 0:00:05]} 36. Rd2+ {[%emt 0:01:34]} Kxc5 {[%emt 0:00:15]} 37. f4 $19 {[%emt 0:00:54]} exf4 {[%emt 0:00:06]} 38. gxf4 {[%emt 0:00:06]} Kb4 {[%emt 0:00:07]} 39. Ke3 {[%emt 0:01:00]} Bxh3 {[%emt 0:00:50]} 40. Ke2 {[%emt 0:03:01]} Bf5 {[%emt 0:00:09]} 0-1